fUST/lending_fUST_20240401
["ID","MTS","AMOUNT","RATE_DAILY","PERIOD"]
[321152913,1711913451394,-500.0,0.00077808,120]
[321152914,1711913451403,-500.0,0.00077808,120]
[321152915,1711913451413,-150.96371262,0.00077954,120]
[321152916,1711913451423,-200.0,0.00077987,3]
[321152917,1711913451432,-500.0,0.00078082,120]
[321152918,1711913451441,-725.96,0.00078082,120]
[321152919,1711913451450,-3084.28,0.00078082,120]
[321152920,1711913451460,-216.0,0.00078082,120]
[321152921,1711913451470,-1554.75,0.00078082,120]
[321152922,1711913451480,-521.82976694,0.00078082,120]
[321152923,1711913451489,-98.32396006,0.00078082,120]
[321152924,1711913451595,155.00930056,0.00033,4]
[321152926,1711914277105,181.0,0.0004,5]
[321152927,1711914383702,323.50551616,0.000379,2]
[321152928,1711914435185,-323.50551616,0.000429,2]
[321152929,1711914435207,-172.10760792,0.000438,2]
[321152930,1711914438141,-15.60096539,0.000438,2]
[321152931,1711914438162,-323.50551616,0.000479,2]
[321152932,1711914438181,-198.94207877,0.00047902,2]
[321152933,1711914478044,174.641098,0.0004,2]
[321152934,1711914503904,253.11620615,0.0004,2]
[321152935,1711914506934,3568.29048888,0.00035,2]
[321152936,1711914555144,-204.11808342,0.00047902,2]
[321152937,1711914555165,-3279.96552251,0.0005,2]
[321152985,1711914632736,-15894.03447749,0.0005,2]
[321152987,1711914632745,-150.96371262,0.00054104,60]
[321152989,1711914632754,-150.96371262,0.00056502,120]
[321152991,1711914632763,-150.96371262,0.00062032,120]
[321152993,1711914632772,-166.666666,0.00066877,2]
[321152994,1711914632782,-242.0,0.00067135,2]
[321152995,1711914632792,-165.862662,0.00067135,2]
[321152996,1711914632802,-502.5718756,0.00067155,2]
[321152997,1711914632812,-4496.9821988,0.00067189,2]
[321152998,1711914632823,-171.36521478,0.00067711,2]
[321152999,1711914632834,-500.0,0.0006773,120]
[321153000,1711914632845,-270.00988072,0.0006773,120]
[321153001,1711914632857,-500.0,0.0006773,120]
[321153002,1711914632868,-500.0,0.0006773,120]
[321153003,1711914632877,-500.0,0.0006773,120]
[321153004,1711914632888,-500.0,0.0006773,120]
[321153005,1711914632898,-500.0,0.0006773,120]
[321153006,1711914632908,-500.0,0.0006773,120]
[321153007,1711914632918,-396.39215654,0.00067732,2]
[321153008,1711914632928,-200.0,0.00067811,2]
[321153009,1711914632938,-166.666666,0.00068701,2]
[321153010,1711914632949,-549.0,0.0007,2]
[321153011,1711914632960,-166.666666,0.00070524,2]
[321153012,1711914632970,-171.36521478,0.00072162,2]
[321153013,1711914632981,-166.666666,0.00072347,2]
[321153014,1711914632991,-9507.97565025,0.00074088,2]
[321153015,1711914633002,-166.666666,0.00074171,2]
[321153016,1711914633012,-499.09698436,0.000744,120]
[321153074,1711914638820,-4823.00979554,0.000744,120]
[321153132,1711914640777,-2107.5573649,0.000744,120]
[321153170,1711914644016,-5697.5989422,0.000744,120]
[321153328,1711914828062,12236.66420017,0.0002,2]
[321153334,1711914851366,255.47464944,0.000195,2]
[321153339,1711914916727,1098.0,0.000195,2]
[321153342,1711914951511,158.948034,0.0004,2]
[321153345,1711915347117,-905.47657665,0.0004013,2]
[321153346,1711915407531,-2612.0,0.0005,2]
[321153348,1711915632144,-478.310056,0.000479,2]
[321153349,1711915632165,-0.23892814,0.0005,2]
[321153350,1711915632185,-478.310056,0.000529,2]
[321153351,1711915632205,-150.96371262,0.00057273,120]
[321153352,1711915632225,-213.04141259,0.000579,2]
[321153353,1711915647078,-265.26864341,0.000579,2]
[321153354,1711915647099,-166.666666,0.00065026,2]
[321153355,1711915647118,-166.666666,0.00066799,2]
[321153356,1711915647138,-166.666666,0.00068572,2]
[321153357,1711915647158,-166.666666,0.00070344,2]
[321153358,1711915647179,-337.63889432,0.00071382,2]
[321153359,1711915651085,-1368.45726338,0.00071382,2]
[321153360,1711915651105,-275.292335,0.00071632,30]
[321153361,1711915651123,-200.0,0.00071632,2]
[321153362,1711915651142,-1640.0,0.00071712,120]
[321153363,1711915651162,-221.0,0.00071903,20]
[321153364,1711915651184,-500.0,0.00071903,120]
[321153365,1711915651204,-263.95711675,0.00071903,120]
[321153366,1711915651225,-8157.84075763,0.00071904,2]
[321153452,1711915832139,-342.38227334,0.00071904,2]
[321153460,1711915832198,-6050.71596688,0.00071904,2]
[321153605,1711915838066,-5632.98658799,0.00071904,2]
[321153607,1711915838077,-4716.07441416,0.00071904,2]
[321153609,1711915838088,-610.0,0.0007191,7]
[321153611,1711915838097,-1773.8471955,0.00071976,2]
[321153613,1711915838107,-248.721475,0.0007198,120]
[321153615,1711915838117,-166.666666,0.00072117,2]
[321153617,1711915838126,-166.666666,0.0007389,2]
[321153619,1711915838135,-177.23205894,0.000743,2]
[321153621,1711915838144,-4054.31580943,0.0007434,2]
[321153623,1711915838156,-1529.40627117,0.0007434,2]
[321153625,1711915838166,-500.0,0.0007439,120]
[321153627,1711915838175,-12799.81535328,0.000744,120]
[321153629,1711915838187,-2163.17431938,0.000744,120]
[321153632,1711915838198,-935.61810455,0.000744,120]
[321153634,1711915838207,-867.814129,0.00074411,30]
[321153636,1711915838216,-657.76897682,0.00076612,2]
[321153638,1711915838225,-177.23205893,0.00076685,2]
[321153640,1711915838234,-500.0,0.00076712,120]
[321153642,1711915838243,-500.0,0.00076712,120]
[321153644,1711915838252,-500.0,0.00076712,120]
[321153646,1711915838262,-501.06382033,0.00076712,120]
[321153648,1711915838271,-580.71983365,0.00076712,120]
[321153649,1711915838280,-500.0,0.00076712,120]
[321153651,1711915838290,-500.0,0.00076712,120]
[321153654,1711915838299,-412.92321311,0.00076712,120]
[321153656,1711915838309,-500.0,0.00076712,120]
[321153658,1711915838318,-503.11874479,0.00076712,120]
[321153660,1711915838328,-502.58,0.00076712,120]
[321153661,1711915838339,-417.31471238,0.00076712,120]
[321153664,1711915838349,-500.0,0.00076712,120]
[321153666,1711915838359,-501.02574191,0.00076712,120]
[321153668,1711915838370,-182.76340811,0.00076712,120]
[321153669,1711915838380,-500.0,0.00076712,120]
[321153671,1711915838389,-500.0,0.00076712,120]
[321153674,1711915838398,-500.0,0.00076712,120]
[321153676,1711915838408,-500.0,0.00076712,120]
[321153677,1711915838418,-500.0,0.00076712,120]
[321153679,1711915838427,-500.0,0.00076712,120]
[321153682,1711915838437,-500.0,0.00076712,120]
[321153684,1711915838446,-500.0,0.00076712,120]
[321153686,1711915838455,-500.0,0.00076712,120]
[321153688,1711915838464,-500.0,0.00076712,120]
[321153690,1711915838474,-1186.9,0.00076712,120]
[321153691,1711915838483,-501.09983592,0.00076712,120]
[321153694,1711915838492,-501.08568129,0.00076712,120]
[321153695,1711915838502,-273.7702853,0.00076712,120]
[321153698,1711915838511,-500.0,0.00076712,120]
[321153700,1711915838520,-500.0,0.00076712,120]
[321153702,1711915838529,-501.81196488,0.00076712,120]
[321153704,1711915838538,-500.0,0.00076712,120]
[321153706,1711915838547,-500.0,0.00076712,120]
[321153707,1711915838557,-503.70308071,0.00076712,120]
[321153708,1711915838567,-503.55812541,0.00076712,120]
[321153709,1711915838577,-500.0,0.00076712,120]
[321153711,1711915838587,-500.0,0.00076712,120]
[321153713,1711915838596,-500.0,0.00076712,120]
[321153715,1711915838605,-500.0,0.00076712,120]
[321153716,1711915838614,-500.0,0.00076712,120]
[321153717,1711915838623,-500.0,0.00076712,120]
[321153718,1711915838632,-500.0,0.00076712,120]
[321153719,1711915838641,-500.0,0.00076712,120]
[321153720,1711915838651,-544.47,0.00076712,120]
[321153721,1711915838660,-500.0,0.00076712,120]
[321153722,1711915838669,-2313.21,0.00076712,120]
[321153723,1711915838678,-500.0,0.00076712,120]
[321153724,1711915838687,-518.22,0.00076712,120]
[321153725,1711915838696,-500.0,0.00076712,120]
[321153726,1711915838705,-504.88539883,0.00076712,120]
[321153727,1711915838714,-503.29144581,0.00076712,120]
[321153728,1711915838723,-500.0,0.00076712,120]
[321153729,1711915838732,-500.0,0.00076712,120]
[321153730,1711915838743,-505.93907844,0.00076712,120]
[321153731,1711915838751,-510.67352786,0.00076712,120]
[321153732,1711915838761,-500.0,0.00076712,2]
[321153733,1711915838770,-500.0,0.00076712,120]
[321153734,1711915838779,-500.0,0.00076712,120]
[321153735,1711915838788,-1731.74,0.00076712,120]
[321153736,1711915838797,-500.0,0.00076712,120]
[321153737,1711915838811,-279.0097165,0.00076712,120]
[321153738,1711915838819,-500.0,0.00076712,120]
[321153739,1711915838829,-500.0,0.00076712,120]
[321153740,1711915838838,-500.0,0.00076712,120]
[321153741,1711915838849,-500.0,0.00076712,120]
[321153742,1711915838858,-500.0,0.00076712,120]
[321153743,1711915838867,-500.0,0.00076712,120]
[321153744,1711915838876,-500.0,0.00076712,120]
[321153745,1711915838885,-500.0,0.00076712,60]
[321153746,1711915838895,-165.21739271,0.00076712,120]
[321153747,1711915838905,-501.92539107,0.00076712,120]
[321153748,1711915838916,-500.0,0.00076712,120]
[321153749,1711915838926,-240.37722158,0.00076712,120]
[321153750,1711915838935,-2336.92,0.00076712,120]
[321153751,1711915838944,-503.5228271,0.00076712,120]
[321153752,1711915838954,-500.0,0.00076712,120]
[321153753,1711915838963,-633.52,0.00076712,120]
[321153754,1711915838972,-500.0,0.00076712,120]
[321153755,1711915838981,-502.12213515,0.00076712,120]
[321153756,1711915838990,-500.0,0.00076712,120]
[321153757,1711915838999,-500.0,0.00076712,120]
[321153758,1711915839009,-800.0,0.00076712,120]
[321153759,1711915839018,-500.0,0.00076712,120]
[321153760,1711915839027,-502.30887743,0.00076712,120]
[321153761,1711915839036,-500.0,0.00076712,120]
[321153762,1711915839045,-500.0,0.00076712,2]
[321153763,1711915839055,-500.0,0.00076712,120]
[321153764,1711915839064,-500.0,0.00076712,120]
[321153765,1711915839074,-500.0,0.00076712,120]
[321153766,1711915839084,-500.0,0.00076712,120]
[321153767,1711915839093,-500.0,0.00076712,120]
[321153768,1711915839102,-500.0,0.00076712,120]
[321153769,1711915839111,-500.0,0.00076712,120]
[321153770,1711915839120,-2794.68,0.00076712,90]
[321153771,1711915839130,-557.4,0.00076712,120]
[321153772,1711915839139,-3000.0,0.00076712,120]
[321153773,1711915839148,-500.0,0.00076712,120]
[321153774,1711915839158,-500.0,0.00076712,120]
[321153775,1711915839167,-500.0,0.00076712,120]
[321153776,1711915839177,-548.61,0.00076712,21]
[321153777,1711915839186,-500.0,0.00076712,120]
[321153778,1711915839195,-500.0,0.00076712,120]
[321153779,1711915839204,-500.0,0.00076712,120]
[321153780,1711915839213,-500.0,0.00076712,120]
[321153781,1711915839222,-500.0,0.00076712,120]
[321153782,1711915839231,-500.0,0.00076712,120]
[321153783,1711915839240,-500.0,0.00076712,120]
[321153784,1711915839250,-500.0,0.00076712,120]
[321153785,1711915839259,-11586.9658557,0.00076712,120]
[321153786,1711915839269,-500.0,0.00076985,120]
[321153787,1711915839278,-464.46571045,0.00076985,120]
[321153788,1711915839287,-500.0,0.00076986,120]
[321153789,1711915839296,-500.0,0.00076986,120]
[321153790,1711915839305,-502.58,0.00076986,120]
[321153791,1711915839314,-267.51671953,0.00076986,120]
[321153792,1711915839323,-500.0,0.00076986,120]
[321153793,1711915839335,-500.0,0.00076986,120]
[321153794,1711915839345,-1186.9,0.00076986,120]
[321153795,1711915839353,-500.0,0.00076986,120]
[321153796,1711915839363,-500.0,0.00076986,120]
[321153797,1711915839372,-500.0,0.00076986,120]
[321153798,1711915839381,-500.0,0.00076986,120]
[321153799,1711915839390,-500.0,0.00076986,120]
[321153800,1711915839399,-544.47,0.00076986,120]
[321153801,1711915839408,-500.0,0.00076986,120]
[321153802,1711915839417,-2313.21,0.00076986,120]
[321153803,1711915839427,-500.0,0.00076986,120]
[321153804,1711915839436,-524.77,0.00076986,120]
[321153805,1711915839445,-500.0,0.00076986,2]
[321153806,1711915839454,-1731.74,0.00076986,120]
[321153807,1711915839463,-500.0,0.00076986,120]
[321153808,1711915839472,-500.0,0.00076986,120]
[321153809,1711915839481,-500.0,0.00076986,120]
[321153810,1711915839489,-500.0,0.00076986,120]
[321153811,1711915839498,-506.19,0.00076986,120]
[321153812,1711915839507,-500.0,0.00076986,120]
[321153814,1711915839517,-500.0,0.00076986,60]
[321153815,1711915839526,-500.0,0.00076986,120]
[321153817,1711915839535,-2336.92,0.00076986,120]
[321153818,1711915839544,-633.52,0.00076986,120]
[321153819,1711915839553,-500.0,0.00076986,120]
[321153820,1711915839562,-500.0,0.00076986,120]
[321153821,1711915839572,-500.0,0.00076986,120]
[321153822,1711915839581,-800.0,0.00076986,120]
[321153823,1711915839594,-500.0,0.00076986,120]
[321153824,1711915839603,-500.0,0.00076986,2]
[321153825,1711915839686,-500.0,0.00076986,120]
[321153826,1711915839695,-500.0,0.00076986,120]
[321153827,1711915839704,-500.0,0.00076986,120]
[321153828,1711915839713,-500.0,0.00076986,120]
[321153829,1711915839723,-500.0,0.00076986,120]
[321153830,1711915839732,-500.0,0.00076986,120]
[321153831,1711915839742,-2794.68,0.00076986,90]
[321153832,1711915839751,-557.4,0.00076986,120]
[321153833,1711915839761,-3000.0,0.00076986,120]
[321153834,1711915839771,-500.0,0.00076986,120]
[321153835,1711915839780,-500.0,0.00076986,120]
[321153836,1711915839790,-548.61,0.00076986,21]
[321153837,1711915839799,-500.0,0.00076986,120]
[321153838,1711915839812,-307.45614425,0.00076986,120]
[321153839,1711915839822,-500.0,0.00076986,120]
[321153840,1711915839831,-500.0,0.00076986,120]
[321153841,1711915839842,-500.0,0.00076986,120]
[321153842,1711915839851,-657.7689768,0.00077023,2]
[321153843,1711915839860,-500.0,0.0007726,120]
[321153844,1711915839870,-502.58,0.0007726,120]
[321153845,1711915839879,-500.0,0.0007726,120]
[321153846,1711915839890,-500.0,0.0007726,120]
[321153848,1711915839899,-1186.9,0.0007726,120]
[321153849,1711915839908,-500.0,0.0007726,120]
[321153850,1711915839917,-500.0,0.0007726,120]
[321153851,1711915839927,-500.0,0.0007726,120]
[321153852,1711915839937,-500.0,0.0007726,120]
[321153853,1711915839946,-500.0,0.0007726,120]
[321153854,1711915839956,-544.47,0.0007726,120]
[321153855,1711915839965,-500.0,0.0007726,120]
[321153856,1711915839975,-2313.21,0.0007726,120]
[321153857,1711915839985,-500.0,0.0007726,120]
[321153858,1711915839994,-1731.74,0.0007726,120]
[321153859,1711915840003,-500.0,0.0007726,120]
[321153860,1711915840012,-500.0,0.0007726,120]
[321153861,1711915840022,-500.0,0.0007726,120]
[321153862,1711915840031,-500.0,0.0007726,120]
[321153863,1711915840040,-500.0,0.0007726,120]
[321153864,1711915840049,-500.0,0.0007726,120]
[321153865,1711915840059,-2336.92,0.0007726,120]
[321153866,1711915840068,-633.52,0.0007726,120]
[321153867,1711915840077,-500.0,0.0007726,120]
[321153868,1711915840087,-500.0,0.0007726,120]
[321153869,1711915840096,-500.0,0.0007726,120]
[321153870,1711915840105,-800.0,0.0007726,120]
[321153871,1711915840114,-500.0,0.0007726,120]
[321153872,1711915840122,-500.0,0.0007726,2]
[321153873,1711915840131,-500.0,0.0007726,120]
[321153874,1711915840140,-500.0,0.0007726,120]
[321153875,1711915840149,-500.0,0.0007726,120]
[321153876,1711915840158,-500.0,0.0007726,120]
[321153877,1711915840167,-500.0,0.0007726,120]
[321153878,1711915840176,-2794.68,0.0007726,90]
[321153879,1711915840185,-557.4,0.0007726,120]
[321153880,1711915840194,-2236.36109009,0.0007726,120]
[321153881,1711915840203,-500.0,0.0007726,120]
[321153882,1711915840212,-548.61,0.0007726,21]
[321153883,1711915840221,-500.0,0.0007726,120]
[321153884,1711915840230,-500.0,0.0007726,120]
[321153885,1711915840239,-500.0,0.0007726,120]
[321153886,1711915840249,-500.0,0.0007726,120]
[321153887,1711915840258,-606.48644632,0.00077534,61]
[321153888,1711915840267,-500.0,0.00077534,120]
[321153889,1711915840276,-502.58,0.00077534,120]
[321153890,1711915840285,-500.0,0.00077534,120]
[321153891,1711915840294,-151.0,0.00077534,120]
[321153892,1711915840303,-151.0,0.00077534,120]
[321153893,1711915840312,-500.0,0.00077534,120]
[321153894,1711915840321,-1186.9,0.00077534,120]
[321153895,1711915840330,-500.0,0.00077534,120]
[321153896,1711915840341,-197.96309657,0.00077534,120]
[321153897,1711915840351,-151.0,0.00077534,120]
[321153898,1711915840360,-500.0,0.00077534,120]
[321153899,1711915840369,-500.0,0.00077534,120]
[321153900,1711915840378,-500.0,0.00077534,120]
[321153901,1711915840388,-544.47,0.00077534,120]
[321153902,1711915840397,-500.0,0.00077534,120]
[321153903,1711915840406,-2313.21,0.00077534,120]
[321153904,1711915840414,-151.0,0.00077534,120]
[321153905,1711915840423,-151.0,0.00077534,120]
[321153906,1711915840432,-151.0,0.00077534,120]
[321153907,1711915840441,-500.0,0.00077534,120]
[321153908,1711915840450,-151.0,0.00077534,120]
[321153909,1711915840459,-152.563465,0.00077534,120]
[321153910,1711915840468,-151.0,0.00077534,10]
[321153911,1711915840479,-1731.74,0.00077534,120]
[321153912,1711915840489,-500.0,0.00077534,120]
[321153913,1711915840498,-500.0,0.00077534,120]
[321153914,1711915840507,-500.0,0.00077534,120]
[321153915,1711915840516,-500.0,0.00077534,120]
[321153916,1711915840525,-151.0,0.00077534,120]
[321153917,1711915840534,-500.0,0.00077534,120]
[321153918,1711915840543,-500.0,0.00077534,120]
[321153919,1711915840553,-2336.92,0.00077534,120]
[321153920,1711915840562,-633.52,0.00077534,120]
[321153921,1711915840572,-500.0,0.00077534,120]
[321153922,1711915840582,-500.0,0.00077534,120]
[321153923,1711915840593,-288.112354,0.00077534,120]
[321153924,1711915840603,-500.0,0.00077534,120]
[321153925,1711915840614,-288.112354,0.00077534,120]
[321153926,1711915840623,-151.0,0.00077534,120]
[321153927,1711915840634,-151.0,0.00077534,120]
[321153928,1711915840643,-800.0,0.00077534,120]
[321153929,1711915840653,-500.0,0.00077534,120]
[321153930,1711915840663,-151.0,0.00077534,120]
[321153931,1711915840672,-500.0,0.00077534,2]
[321153932,1711915840682,-500.0,0.00077534,120]
[321153933,1711915840691,-500.0,0.00077534,120]
[321153934,1711915840700,-500.0,0.00077534,120]
[321153935,1711915840709,-151.0,0.00077534,120]
[321153936,1711915840718,-500.0,0.00077534,120]
[321153937,1711915840727,-500.0,0.00077534,120]
[321153938,1711915840736,-2794.68,0.00077534,90]
[321153939,1711915840746,-557.4,0.00077534,120]
[321153940,1711915840754,-245.730574,0.00077534,120]
[321153941,1711915840764,-500.0,0.00077534,120]
[321153942,1711915840773,-548.61,0.00077534,21]
[321153943,1711915840782,-500.0,0.00077534,120]
[321153944,1711915840792,-500.0,0.00077534,120]
[321153945,1711915840802,-500.0,0.00077534,120]
[321153946,1711915840814,-151.0,0.00077534,120]
[321153947,1711915840823,-500.0,0.00077534,120]
[321153948,1711915840834,-1000.0,0.00077777,7]
[321153949,1711915840843,-500.0,0.000778,120]
[321153950,1711915840854,-536.05850567,0.00077808,120]
[321153951,1711915840863,-502.58,0.00077808,120]
[321153952,1711915840872,-500.0,0.00077808,120]
[321153953,1711915840882,-151.0,0.00077808,120]
[321153954,1711915840891,-151.0,0.00077808,120]
[321153955,1711915840900,-373.0445469,0.00077808,120]
[321153956,1711915840909,-1186.9,0.00077808,120]
[321153957,1711915840919,-500.0,0.00077808,120]
[321153958,1711915840929,-151.0,0.00077808,120]
[321153959,1711915840938,-500.0,0.00077808,120]
[321153960,1711915840947,-500.0,0.00077808,120]
[321153961,1711915840956,-506.63004731,0.00077808,120]
[321153962,1711915840966,-544.47,0.00077808,120]
[321153963,1711915840976,-500.0,0.00077808,120]
[321153964,1711915840986,-2313.21,0.00077808,120]
[321153965,1711915840995,-151.0,0.00077808,120]
[321153966,1711915841005,-151.0,0.00077808,120]
[321153967,1711915841014,-151.0,0.00077808,120]
[321153968,1711915841024,-500.0,0.00077808,120]
[321153969,1711915841033,-151.0,0.00077808,120]
[321153970,1711915841042,-151.0,0.00077808,10]
[321153971,1711915841052,-1731.74,0.00077808,120]
[321153972,1711915841061,-500.0,0.00077808,120]
[321153973,1711915841071,-500.0,0.00077808,120]
[321153974,1711915841080,-500.0,0.00077808,120]
[321153975,1711915841093,-287.60918402,0.00077808,120]
[321153976,1711915841102,-151.0,0.00077808,120]
[321153977,1711915841111,-192.79,0.00077808,120]
[321153978,1711915841121,-500.0,0.00077808,120]
[321153979,1711915841130,-2336.92,0.00077808,120]
[321153980,1711915841139,-633.52,0.00077808,120]
[321153981,1711915841148,-500.0,0.00077808,120]
[321153982,1711915841158,-196.35,0.00077808,120]
[321153983,1711915841167,-288.112354,0.00077808,120]
[321153984,1711915841177,-500.0,0.00077808,120]
[321153985,1711915841186,-288.112354,0.00077808,120]
[321153986,1711915841195,-151.0,0.00077808,120]
[321153987,1711915841204,-151.0,0.00077808,120]
[321153988,1711915841213,-800.0,0.00077808,120]
[321153989,1711915841222,-500.0,0.00077808,120]
[321153990,1711915841231,-151.0,0.00077808,120]
[321153991,1711915841240,-500.0,0.00077808,2]
[321153992,1711915841250,-306.93,0.00077808,120]
[321153993,1711915841259,-500.0,0.00077808,120]
[321153994,1711915841268,-500.0,0.00077808,120]
[321153995,1711915841279,-151.0,0.00077808,120]
[321153996,1711915841289,-500.0,0.00077808,120]
[321153997,1711915841298,-500.0,0.00077808,120]
[321153998,1711915841308,-2794.68,0.00077808,90]
[321153999,1711915841318,-557.4,0.00077808,120]
[321154000,1711915841327,-500.0,0.00077808,120]
[321154001,1711915841339,-548.61,0.00077808,21]
[321154002,1711915841348,-500.0,0.00077808,120]
[321154003,1711915841358,-500.0,0.00077808,120]
[321154004,1711915841368,-500.0,0.00077808,120]
[321154005,1711915841378,-151.0,0.00077808,120]
[321154006,1711915841387,-500.0,0.00077808,120]
[321154007,1711915841396,-502.58,0.00078082,120]
[321154008,1711915841405,-500.0,0.00078082,120]
[321154009,1711915841415,-151.0,0.00078082,120]
[321154010,1711915841424,-151.0,0.00078082,120]
[321154011,1711915841433,-1186.9,0.00078082,120]
[321154012,1711915841442,-500.0,0.00078082,120]
[321154013,1711915841451,-151.0,0.00078082,120]
[321154014,1711915841460,-500.0,0.00078082,120]
[321154015,1711915841469,-500.0,0.00078082,120]
[321154016,1711915841478,-544.47,0.00078082,120]
[321154017,1711915841487,-360.31,0.00078082,120]
[321154018,1711915841497,-2313.21,0.00078082,120]
[321154019,1711915841506,-151.0,0.00078082,120]
[321154020,1711915841514,-272.669556,0.00078082,120]
[321154021,1711915841523,-151.0,0.00078082,120]
[321154022,1711915841601,-500.0,0.00078082,120]
[321154023,1711915841610,-151.0,0.00078082,120]
[321154024,1711915841619,-151.0,0.00078082,10]
[321154025,1711915841628,-1731.74,0.00078082,120]
[321154026,1711915841637,-500.0,0.00078082,120]
[321154027,1711915841646,-623.94626672,0.00078082,120]
[321154028,1711915841655,-329.91,0.00078082,120]
[321154029,1711915841664,-175.746379,0.00078082,120]
[321154030,1711915841674,-500.0,0.00078082,120]
[321154031,1711915841682,-2336.92,0.00078082,120]
[321154032,1711915841692,-633.52,0.00078082,120]
[321154033,1711915841701,-500.0,0.00078082,120]
[321154034,1711915841710,-288.112354,0.00078082,120]
[321154035,1711915841720,-500.0,0.00078082,120]
[321154036,1711915841729,-288.112354,0.00078082,120]
[321154037,1711915841738,-151.0,0.00078082,120]
[321154038,1711915841748,-151.0,0.00078082,120]
[321154039,1711915841757,-800.0,0.00078082,120]
[321154040,1711915841766,-500.0,0.00078082,120]
[321154041,1711915841775,-151.0,0.00078082,120]
[321154042,1711915841785,-500.0,0.00078082,2]
[321154043,1711915841794,-500.0,0.00078082,120]
[321154044,1711915841803,-500.0,0.00078082,120]
[321154045,1711915841815,-151.0,0.00078082,120]
[321154046,1711915841824,-377.7,0.00078082,120]
[321154047,1711915841835,-500.0,0.00078082,120]
[321154048,1711915841845,-2794.68,0.00078082,90]
[321154049,1711915841854,-557.4,0.00078082,120]
[321154050,1711915841864,-607.05,0.00078082,120]
[321154051,1711915841874,-548.61,0.00078082,21]
[321154052,1711915841885,-500.0,0.00078082,120]
[321154053,1711915841894,-500.0,0.00078082,120]
[321154054,1711915841903,-500.0,0.00078082,120]
[321154055,1711915841912,-151.0,0.00078082,120]
[321154056,1711915841922,-500.0,0.00078082,120]
[321154057,1711915841931,-502.58,0.00078356,120]
[321154058,1711915841941,-270.18067632,0.00078356,120]
[321154059,1711915841950,-151.0,0.00078356,120]
[321154060,1711915841959,-151.0,0.00078356,120]
[321154061,1711915841969,-1186.9,0.00078356,120]
[321154062,1711915841979,-500.0,0.00078356,120]
[321154063,1711915841988,-151.0,0.00078356,120]
[321154064,1711915841997,-500.0,0.00078356,120]
[321154065,1711915842006,-500.0,0.00078356,120]
[321154066,1711915842016,-544.47,0.00078356,120]
[321154067,1711915842025,-2313.21,0.00078356,120]
[321154068,1711915842035,-151.0,0.00078356,120]
[321154069,1711915842044,-151.0,0.00078356,120]
[321154070,1711915842054,-500.0,0.00078356,120]
[321154071,1711915842063,-151.0,0.00078356,120]
[321154072,1711915842072,-1731.74,0.00078356,120]
[321154073,1711915842081,-500.0,0.00078356,120]
[321154074,1711915842091,-500.0,0.00078356,120]
[321154075,1711915842101,-2336.92,0.00078356,120]
[321154076,1711915842110,-633.52,0.00078356,120]
[321154077,1711915842119,-500.0,0.00078356,120]
[321154078,1711915842127,-288.112354,0.00078356,120]
[321154079,1711915842137,-500.0,0.00078356,120]